[Event "Kvibergspelen 2022"]
[Site "Kviberg Park Hotel & Conference, Krutvagen 2, Gothenburg, Sweden"]
[Date "2022.10.02"]
[Round "7.12"]
[White "Heidarsson, Arnar Milutin"]
[Black "Lindahl, Jonas"]
[Result "0-1"]
[TimeControl "15 minutes + 5 seconds per move from move one (Round 1 - 4) / 90 minutes + 30 seconds per move from move one (Round 5 - 8)"]
[WhiteFideId "2312875"]
[BlackFideId "1710060"]
[WhiteElo "2020"]
[BlackElo "2165"]

1. d4 {[%clk 01:30:56]} {[%emt 00:00:03]} g6 {[%clk 01:30:48]} {[%emt
00:00:13]} 2. e4 {[%clk 01:31:09]} {[%emt 00:00:17]} Bg7 {[%clk 01:31:13]}
{[%emt 00:00:06]} 3. Be3 {[%clk 01:31:15]} {[%emt 00:00:24]} c5 {[%clk
01:30:50]} {[%emt 00:00:53]} 4. c3 {[%clk 01:28:49]} {[%emt 00:02:56]} Nf6
{[%clk 01:29:40]} {[%emt 00:01:40]} 5. Nd2 {[%clk 01:24:54]} {[%emt 00:04:25]}
cxd4 {[%clk 01:19:57]} {[%emt 00:10:14]} 6. cxd4 {[%clk 01:23:49]} {[%emt
00:01:34]} O-O {[%clk 01:16:45]} {[%emt 00:03:42]} 7. h3 {[%clk 01:21:22]}
{[%emt 00:02:56]} b6 {[%clk 01:11:05]} {[%emt 00:06:10]} 8. Bd3 {[%clk
01:20:04]} {[%emt 00:01:48]} Bb7 {[%clk 01:11:04]} {[%emt 00:00:31]} 9. Ne2
{[%clk 01:19:58]} {[%emt 00:00:36]} d6 {[%clk 01:10:22]} {[%emt 00:01:13]} 10.
O-O {[%clk 01:20:10]} {[%emt 00:00:18]} e5 {[%clk 01:09:53]} {[%emt 00:00:59]}
11. d5 {[%clk 01:18:44]} {[%emt 00:01:56]} Ne8 {[%clk 01:10:12]} {[%emt
00:00:11]} 12. Qc2 {[%clk 01:13:23]} {[%emt 00:05:50]} Na6 {[%clk 01:09:23]}
{[%emt 00:01:19]} 13. a3 {[%clk 01:12:42]} {[%emt 00:01:11]} Nc5 {[%clk
01:09:15]} {[%emt 00:00:38]} 14. b4 {[%clk 01:12:39]} {[%emt 00:00:33]} Nxd3
{[%clk 01:09:25]} {[%emt 00:00:20]} 15. Qxd3 {[%clk 01:13:05]} {[%emt
00:00:04]} f5 {[%clk 01:08:50]} {[%emt 00:01:06]} 16. f3 {[%clk 01:13:02]}
{[%emt 00:00:33]} f4 {[%clk 01:05:22]} {[%emt 00:03:57]} 17. Bf2 {[%clk
01:13:27]} {[%emt 00:00:05]} h5 {[%clk 01:05:06]} {[%emt 00:00:47]} 18. b5
{[%clk 01:11:56]} {[%emt 00:02:01]} g5 {[%clk 01:04:33]} {[%emt 00:01:03]} 19.
g4 {[%clk 01:11:25]} {[%emt 00:01:01]} fxg3 {[%clk 01:04:09]} {[%emt 00:00:54]}
20. Nxg3 {[%clk 01:11:24]} {[%emt 00:00:31]} Bc8 {[%clk 01:01:05]} {[%emt
00:03:34]} 21. Kg2 {[%clk 01:09:50]} {[%emt 00:02:03]} Qf6 {[%clk 01:01:18]}
{[%emt 00:00:17]} 22. Be3 {[%clk 01:01:24]} {[%emt 00:08:56]} Qg6 {[%clk
00:58:00]} {[%emt 00:03:48]} 23. a4 {[%clk 00:58:25]} {[%emt 00:03:29]} Rf4
{[%clk 00:46:32]} {[%emt 00:11:58]} 24. Ne2 {[%clk 00:55:00]} {[%emt 00:03:55]}
g4 {[%clk 00:23:19]} {[%emt 00:23:43]} 25. fxg4 {[%clk 00:53:58]} {[%emt
00:01:32]} Rxf1 {[%clk 00:20:37]} {[%emt 00:03:13]} 26. Rxf1 {[%clk 00:53:31]}
{[%emt 00:00:57]} hxg4 {[%clk 00:20:53]} {[%emt 00:00:14]} 27. h4 {[%clk
00:53:44]} {[%emt 00:00:16]} Nf6 {[%clk 00:19:38]} {[%emt 00:01:46]} 28. Ng3
{[%clk 00:52:10]} {[%emt 00:02:05]} Nh5 {[%clk 00:19:51]} {[%emt 00:00:18]} 29.
Nc4 {[%clk 00:48:07]} {[%emt 00:04:32]} Bd7 {[%clk 00:16:42]} {[%emt 00:03:39]}
30. Nxh5 {[%clk 00:46:58]} {[%emt 00:01:38]} Qxh5 {[%clk 00:16:53]} {[%emt
00:00:19]} 31. Bxb6 {[%clk 00:30:26]} {[%emt 00:17:03]} Qxh4 {[%clk 00:14:34]}
{[%emt 00:02:49]} 32. Bf2 {[%clk 00:28:58]} {[%emt 00:01:59]} g3 {[%clk
00:12:25]} {[%emt 00:02:39]} 33. Bxg3 {[%clk 00:27:21]} {[%emt 00:02:07]} Bh3+
{[%clk 00:12:35]} {[%emt 00:00:20]} 34. Kg1 {[%clk 00:23:07]} {[%emt 00:04:43]}
Bxf1 {[%clk 00:12:54]} {[%emt 00:00:11]} 35. Kxf1 {[%clk 00:22:55]} {[%emt
00:00:43]} Qh1+ {[%clk 00:13:08]} {[%emt 00:00:15]} 36. Ke2 {[%clk 00:23:00]}
{[%emt 00:00:25]} Rf8 {[%clk 00:12:50]} {[%emt 00:00:48]} 37. Nd2 {[%clk
00:22:05]} {[%emt 00:01:25]} Bh6 {[%clk 00:11:39]} {[%emt 00:01:41]} 38. Nf3
{[%clk 00:21:03]} {[%emt 00:01:32]} Qa1 {[%clk 00:09:39]} {[%emt 00:02:30]} 39.
Qb3 {[%clk 00:18:42]} {[%emt 00:02:52]} Rc8 {[%clk 00:06:56]} {[%emt 00:03:13]}
40. Be1 {[%clk 00:17:55]} {[%emt 00:01:16]} Qc1 {[%clk 00:06:09]} {[%emt
00:01:17]} 41. b6 {[%clk 00:16:34]} {[%emt 00:01:52]} axb6 {[%clk 00:05:29]}
{[%emt 00:01:10]} 42. Bd2 {[%clk 00:13:39]} {[%emt 00:03:25]} Bxd2 {[%clk
00:03:34]} {[%emt 00:02:25]} 43. Nxd2 {[%clk 00:14:03]} {[%emt 00:00:06]} Rc2
{[%clk 00:03:17]} {[%emt 00:00:46]} 44. Qg3+ {[%clk 00:14:05]} {[%emt
00:00:28]} Kf8 {[%clk 00:03:37]} {[%emt 00:00:10]} 45. Qf2+ {[%clk 00:14:25]}
{[%emt 00:00:10]} Ke8 {[%clk 00:03:57]} {[%emt 00:00:10]} 46. Qe3 {[%clk
00:14:19]} {[%emt 00:00:36]} Kd7 {[%clk 00:04:10]} {[%emt 00:00:18]} 47. Qd3
{[%clk 00:13:32]} {[%emt 00:01:18]} Kc7 {[%clk 00:04:16]} {[%emt 00:00:23]} 48.
Qe3 {[%clk 00:13:33]} {[%emt 00:00:29]} Kb7 {[%clk 00:04:39]} {[%emt 00:00:08]}
49. Qd3 {[%clk 00:13:51]} {[%emt 00:00:12]} Rb2 {[%clk 00:04:46]} {[%emt
00:00:22]} 50. Qe3 {[%clk 00:11:57]} {[%emt 00:02:25]} Qc2 {[%clk 00:04:42]}
{[%emt 00:00:34]} 51. Qd3 {[%clk 00:11:05]} {[%emt 00:01:22]} Qxd3+ {[%clk
00:03:57]} {[%emt 00:01:14]} 52. Kxd3 {[%clk 00:11:30]} {[%emt 00:00:04]} Ra2
{[%clk 00:04:11]} {[%emt 00:00:17]} 0-1

[Event "Kvibergspelen 2022"]
[Site "Kviberg Park Hotel & Conference, Krutvagen 2, Gothenburg, Sweden"]
[Date "2022.10.02"]
[Round "7.13"]
[White "Jakenberg, Jussi"]
[Black "Kleimark, Anders"]
[Result "1-0"]
[TimeControl "15 minutes + 5 seconds per move from move one (Round 1 - 4) / 90 minutes + 30 seconds per move from move one (Round 5 - 8)"]
[WhiteFideId "1710931"]
[BlackFideId "1709968"]
[WhiteElo "2114"]
[BlackElo "1976"]

1. d4 {[%clk 01:30:56]} {[%emt 00:00:03]} Nf6 {[%clk 01:30:39]} {[%emt
00:00:21]} 2. Nf3 {[%clk 01:31:25]} {[%emt 00:00:02]} e6 {[%clk 01:30:26]}
{[%emt 00:00:42]} 3. g3 {[%clk 01:31:37]} {[%emt 00:00:18]} d5 {[%clk
01:29:47]} {[%emt 00:01:09]} 4. Bg2 {[%clk 01:31:58]} {[%emt 00:00:11]} Be7
{[%clk 01:28:26]} {[%emt 00:01:51]} 5. O-O {[%clk 01:32:13]} {[%emt 00:00:13]}
O-O {[%clk 01:27:39]} {[%emt 00:01:17]} 6. c4 {[%clk 01:32:41]} {[%emt
00:00:02]} dxc4 {[%clk 01:26:21]} {[%emt 00:01:48]} 7. Qc2 {[%clk 01:33:03]}
{[%emt 00:00:09]} a6 {[%clk 01:25:12]} {[%emt 00:01:39]} 8. a4 {[%clk
01:33:30]} {[%emt 00:00:03]} Bd7 {[%clk 01:23:46]} {[%emt 00:01:55]} 9. Rd1
{[%clk 01:33:03]} {[%emt 00:00:57]} Bc6 {[%clk 01:22:28]} {[%emt 00:01:48]} 10.
Nc3 {[%clk 01:33:03]} {[%emt 00:00:30]} Nd5 {[%clk 01:19:37]} {[%emt 00:03:21]}
11. e4 {[%clk 01:21:50]} {[%emt 00:11:43]} Nxc3 {[%clk 01:13:05]} {[%emt
00:07:01]} 12. bxc3 {[%clk 01:22:19]} {[%emt 00:00:02]} b5 {[%clk 01:06:05]}
{[%emt 00:07:30]} 13. Ne5 {[%clk 01:21:00]} {[%emt 00:01:48]} Bb7 {[%clk
01:03:24]} {[%emt 00:03:11]} 14. Rb1 {[%clk 01:14:01]} {[%emt 00:07:30]} f6
{[%clk 01:01:05]} {[%emt 00:02:49]} 15. Nxc4 {[%clk 01:13:38]} {[%emt
00:00:53]} c6 {[%clk 00:58:22]} {[%emt 00:03:12]} 16. Bf4 {[%clk 01:07:46]}
{[%emt 00:06:23]} Bc8 {[%clk 00:56:38]} {[%emt 00:02:14]} 17. Nb2 {[%clk
01:04:50]} {[%emt 00:03:26]} Nd7 {[%clk 00:56:04]} {[%emt 00:01:03]} 18. Bh3
{[%clk 00:54:30]} {[%emt 00:10:49]} Nb6 {[%clk 00:50:37]} {[%emt 00:05:57]} 19.
a5 {[%clk 00:49:51]} {[%emt 00:05:10]} Nc4 {[%clk 00:50:13]} {[%emt 00:00:53]}
20. Nxc4 {[%clk 00:50:02]} {[%emt 00:00:20]} bxc4 {[%clk 00:50:40]} {[%emt
00:00:02]} 21. Qa4 {[%clk 00:49:17]} {[%emt 00:01:15]} f5 {[%clk 00:45:42]}
{[%emt 00:05:28]} 22. exf5 {[%clk 00:43:23]} {[%emt 00:06:24]} exf5 {[%clk
00:45:04]} {[%emt 00:01:08]} 23. Qxc4+ {[%clk 00:43:39]} {[%emt 00:00:14]} Qd5
{[%clk 00:44:08]} {[%emt 00:01:26]} 24. Qxd5+ {[%clk 00:42:39]} {[%emt
00:01:31]} cxd5 {[%clk 00:44:36]} {[%emt 00:00:02]} 25. Bg2 {[%clk 00:42:55]}
{[%emt 00:00:14]} Rd8 {[%clk 00:43:27]} {[%emt 00:01:39]} 26. c4 {[%clk
00:41:28]} {[%emt 00:01:58]} Be6 {[%clk 00:42:56]} {[%emt 00:01:01]} 27. Re1
{[%clk 00:30:20]} {[%emt 00:11:38]} Kf7 {[%clk 00:42:42]} {[%emt 00:00:43]} 28.
Rb6 {[%clk 00:29:55]} {[%emt 00:00:55]} Ra7 {[%clk 00:37:38]} {[%emt 00:05:34]}
29. Rbxe6 {[%clk 00:28:04]} {[%emt 00:02:21]} dxc4 {[%clk 00:37:50]} {[%emt
00:00:19]} 30. Rxe7+ {[%clk 00:26:03]} {[%emt 00:02:30]} Rxe7 {[%clk 00:38:08]}
{[%emt 00:00:13]} 31. Rxe7+ {[%clk 00:26:31]} {[%emt 00:00:02]} Kxe7 {[%clk
00:38:21]} {[%emt 00:00:16]} 32. Bg5+ {[%clk 00:26:55]} {[%emt 00:00:06]} Kd7
{[%clk 00:38:35]} {[%emt 00:00:16]} 33. Bxd8 {[%clk 00:27:18]} {[%emt
00:00:06]} Kxd8 {[%clk 00:38:57]} {[%emt 00:00:08]} 34. Kf1 {[%clk 00:27:32]}
{[%emt 00:00:17]} Ke7 {[%clk 00:36:06]} {[%emt 00:03:21]} 35. Ke2 {[%clk
00:27:36]} {[%emt 00:00:25]} Kd6 {[%clk 00:35:48]} {[%emt 00:00:48]} 36. f4
{[%clk 00:27:10]} {[%emt 00:00:57]} g6 {[%clk 00:35:15]} {[%emt 00:01:03]} 37.
Kd2 {[%clk 00:27:34]} {[%emt 00:00:05]} h6 {[%clk 00:35:01]} {[%emt 00:00:44]}
38. Kc3 {[%clk 00:27:56]} {[%emt 00:00:08]} g5 {[%clk 00:31:07]} {[%emt
00:04:23]} 39. Kxc4 {[%clk 00:28:15]} {[%emt 00:00:11]} g4 {[%clk 00:31:01]}
{[%emt 00:00:37]} 40. d5 {[%clk 00:27:53]} {[%emt 00:00:52]} h5 {[%clk
00:31:12]} {[%emt 00:00:18]} 41. Kd4 {[%clk 00:28:07]} {[%emt 00:00:16]} Kc7
{[%clk 00:31:17]} {[%emt 00:00:26]} 42. Kc5 {[%clk 00:28:22]} {[%emt 00:00:15]}
Kd7 {[%clk 00:30:51]} {[%emt 00:00:56]} 43. Bf1 {[%clk 00:28:40]} {[%emt
00:00:11]} Kc7 {[%clk 00:31:04]} {[%emt 00:00:17]} 44. Bxa6 {[%clk 00:29:03]}
{[%emt 00:00:08]} Kb8 {[%clk 00:31:16]} {[%emt 00:00:17]} 45. Kb6 {[%clk
00:28:36]} {[%emt 00:00:56]} 1-0

[Event "Kvibergspelen 2022"]
[Site "Kviberg Park Hotel & Conference, Krutvagen 2, Gothenburg, Sweden"]
[Date "2022.10.02"]
[Round "7.14"]
[White "Nilsson, Oliver"]
[Black "Borvander, Tom"]
[Result "1/2-1/2"]
[TimeControl "15 minutes + 5 seconds per move from move one (Round 1 - 4) / 90 minutes + 30 seconds per move from move one (Round 5 - 8)"]
[WhiteFideId "1730177"]
[BlackFideId "1707388"]
[WhiteElo "1909"]
[BlackElo "2098"]

1. e4 {[%clk 01:25:29]} {[%emt 00:05:30]} e5 {[%clk 01:30:29]} {[%emt
00:00:31]} 2. Nf3 {[%clk 01:25:54]} {[%emt 00:00:05]} Nc6 {[%clk 01:30:47]}
{[%emt 00:00:12]} 3. Bc4 {[%clk 01:26:19]} {[%emt 00:00:06]} Nf6 {[%clk
01:30:52]} {[%emt 00:00:24]} 4. Ng5 {[%clk 01:26:44]} {[%emt 00:00:05]} d5
{[%clk 01:30:57]} {[%emt 00:00:25]} 5. exd5 {[%clk 01:27:08]} {[%emt 00:00:08]}
Na5 {[%clk 01:30:50]} {[%emt 00:00:35]} 6. Bb5+ {[%clk 01:27:31]} {[%emt
00:00:07]} c6 {[%clk 01:31:13]} {[%emt 00:00:07]} 7. dxc6 {[%clk 01:27:57]}
{[%emt 00:00:04]} bxc6 {[%clk 01:31:37]} {[%emt 00:00:06]} 8. Bd3 {[%clk
01:28:20]} {[%emt 00:00:07]} Ng4 {[%clk 01:30:57]} {[%emt 00:01:09]} 9. Ne4
{[%clk 01:26:47]} {[%emt 00:02:03]} f5 {[%clk 01:30:32]} {[%emt 00:00:56]} 10.
Be2 {[%clk 01:24:46]} {[%emt 00:02:30]} h5 {[%clk 01:26:28]} {[%emt 00:04:34]}
11. h3 {[%clk 01:22:37]} {[%emt 00:02:39]} fxe4 {[%clk 01:25:27]} {[%emt
00:01:31]} 12. hxg4 {[%clk 01:22:41]} {[%emt 00:00:26]} Bc5 {[%clk 01:25:04]}
{[%emt 00:00:52]} 13. Nc3 {[%clk 01:21:01]} {[%emt 00:02:11]} Qd4 {[%clk
01:24:20]} {[%emt 00:01:14]} 14. O-O {[%clk 01:19:36]} {[%emt 00:01:55]} O-O
{[%clk 01:19:14]} {[%emt 00:05:36]} 15. Qe1 {[%clk 01:16:45]} {[%emt 00:03:21]}
hxg4 {[%clk 01:09:38]} {[%emt 00:10:06]} 16. d3 {[%clk 01:12:57]} {[%emt
00:04:17]} g3 {[%clk 01:04:17]} {[%emt 00:05:50]} 17. Nxe4 {[%clk 01:10:31]}
{[%emt 00:02:56]} gxf2+ {[%clk 01:04:36]} {[%emt 00:00:11]} 18. Rxf2 {[%clk
01:10:11]} {[%emt 00:00:50]} Bb6 {[%clk 01:02:47]} {[%emt 00:02:19]} 19. Bf1
{[%clk 01:07:31]} {[%emt 00:03:10]} Bf5 {[%clk 00:47:40]} {[%emt 00:15:37]} 20.
c3 {[%clk 01:02:49]} {[%emt 00:05:13]} Qd7 {[%clk 00:44:14]} {[%emt 00:03:55]}
21. Be3 {[%clk 01:00:53]} {[%emt 00:02:26]} Nb7 {[%clk 00:43:57]} {[%emt
00:00:47]} 22. Bxb6 {[%clk 00:56:42]} {[%emt 00:04:41]} axb6 {[%clk 00:44:22]}
{[%emt 00:00:05]} 23. d4 {[%clk 00:55:57]} {[%emt 00:01:15]} exd4 {[%clk
00:42:48]} {[%emt 00:02:04]} 24. Bc4+ {[%clk 00:53:54]} {[%emt 00:02:33]} Be6
{[%clk 00:42:46]} {[%emt 00:00:32]} 25. Bxe6+ {[%clk 00:37:35]} {[%emt
00:16:49]} Qxe6 {[%clk 00:43:09]} {[%emt 00:00:08]} 26. Re2 {[%clk 00:36:58]}
{[%emt 00:01:06]} d3 {[%clk 00:41:20]} {[%emt 00:02:18]} 27. Re3 {[%clk
00:36:24]} {[%emt 00:01:04]} Qd5 {[%clk 00:39:49]} {[%emt 00:02:01]} 28. Rd1
{[%clk 00:32:50]} {[%emt 00:04:04]} Nc5 {[%clk 00:33:14]} {[%emt 00:07:05]} 29.
Nxc5 {[%clk 00:30:58]} {[%emt 00:02:22]} Qxc5 {[%clk 00:33:36]} {[%emt
00:00:08]} 30. b4 {[%clk 00:30:37]} {[%emt 00:00:51]} Qc4 {[%clk 00:32:39]}
{[%emt 00:01:26]} 31. Rexd3 {[%emt 00:10:29]} 1/2-1/2

[Event "Kvibergspelen 2022"]
[Site "Kviberg Park Hotel & Conference, Krutvagen 2, Gothenburg, Sweden"]
[Date "2022.10.02"]
[Round "7.15"]
[White "Briem, Stephan"]
[Black "Radberg, John"]
[Result "1-0"]
[TimeControl "15 minutes + 5 seconds per move from move one (Round 1 - 4) / 90 minutes + 30 seconds per move from move one (Round 5 - 8)"]
[WhiteFideId "2312506"]
[BlackFideId "1720074"]
[WhiteElo "2083"]
[BlackElo "1909"]

1. d4 {[%clk 01:30:56]} {[%emt 00:00:04]} Nf6 {[%clk 01:30:45]} {[%emt
00:00:16]} 2. c4 {[%emt 00:01:18]} g6 {[%clk 01:30:38]} {[%emt 00:00:34]} 3.
Nf3 {[%clk 01:29:19]} {[%emt 00:01:21]} Bg7 {[%clk 01:30:44]} {[%emt 00:00:24]}
4. e3 {[%clk 01:29:33]} {[%emt 00:00:16]} O-O {[%clk 01:30:16]} {[%emt
00:00:58]} 5. Be2 {[%clk 01:29:46]} {[%emt 00:00:18]} d6 {[%clk 01:29:56]}
{[%emt 00:00:50]} 6. O-O {[%clk 01:30:03]} {[%emt 00:00:13]} c5 {[%clk
01:29:49]} {[%emt 00:00:38]} 7. d5 {[%clk 01:23:17]} {[%emt 00:07:16]} e5
{[%clk 01:24:16]} {[%emt 00:06:03]} 8. Nc3 {[%clk 01:20:59]} {[%emt 00:02:48]}
Nbd7 {[%clk 01:22:33]} {[%emt 00:02:13]} 9. a3 {[%clk 01:16:48]} {[%emt
00:04:41]} Ng4 {[%clk 01:13:43]} {[%emt 00:09:20]} 10. Nd2 {[%clk 01:16:27]}
{[%emt 00:00:51]} Nh6 {[%clk 01:08:18]} {[%emt 00:05:55]} 11. Nb5 {[%clk
01:09:32]} {[%emt 00:07:25]} Qe7 {[%clk 01:05:27]} {[%emt 00:03:22]} 12. Ne4
{[%clk 01:05:33]} {[%emt 00:04:28]} Nf5 {[%clk 00:54:47]} {[%emt 00:11:10]} 13.
b4 {[%clk 01:01:05]} {[%emt 00:04:58]} a6 {[%clk 00:51:07]} {[%emt 00:04:10]}
14. Nbc3 {[%clk 01:00:13]} {[%emt 00:01:21]} b6 {[%clk 00:50:35]} {[%emt
00:01:03]} 15. Rb1 {[%clk 00:58:32]} {[%emt 00:02:11]} Nh6 {[%clk 00:45:56]}
{[%emt 00:05:09]} 16. Qa4 {[%clk 00:52:45]} {[%emt 00:06:16]} Nb8 {[%clk
00:34:57]} {[%emt 00:11:29]} 17. bxc5 {[%clk 00:52:00]} {[%emt 00:01:14]} bxc5
{[%clk 00:34:28]} {[%emt 00:01:00]} 18. Rb6 {[%clk 00:45:34]} {[%emt 00:06:55]}
Rd8 {[%clk 00:31:43]} {[%emt 00:03:16]} 19. Qb3 {[%clk 00:43:46]} {[%emt
00:02:17]} Qc7 {[%clk 00:22:27]} {[%emt 00:09:46]} 20. Bd2 {[%clk 00:41:31]}
{[%emt 00:02:45]} f5 {[%clk 00:11:16]} {[%emt 00:11:41]} 21. Rb1 {[%clk
00:39:57]} {[%emt 00:02:03]} fxe4 {[%clk 00:10:03]} {[%emt 00:01:44]} 22. Rxb8
{[%clk 00:40:17]} {[%emt 00:00:10]} Bf5 {[%clk 00:09:55]} {[%emt 00:00:38]} 23.
Rxd8+ {[%clk 00:33:23]} {[%emt 00:07:23]} Qxd8 {[%clk 00:10:16]} {[%emt
00:00:09]} 24. Qb6 {[%clk 00:33:22]} {[%emt 00:00:31]} Bf8 {[%clk 00:08:02]}
{[%emt 00:02:44]} 25. Qxd8 {[%clk 00:32:53]} {[%emt 00:00:58]} Rxd8 {[%clk
00:08:26]} {[%emt 00:00:07]} 26. Rb6 {[%clk 00:33:08]} {[%emt 00:00:15]} Ra8
{[%clk 00:08:13]} {[%emt 00:00:43]} 27. Rb7 {[%clk 00:30:30]} {[%emt 00:03:07]}
g5 {[%clk 00:07:44]} {[%emt 00:00:59]} 28. Bd1 {[%clk 00:30:18]} {[%emt
00:00:42]} Nf7 {[%clk 00:07:45]} {[%emt 00:00:29]} 29. Bc2 {[%clk 00:30:02]}
{[%emt 00:00:46]} Nd8 {[%clk 00:07:07]} {[%emt 00:01:08]} 30. Rb6 {[%clk
00:30:06]} {[%emt 00:00:26]} Be7 {[%clk 00:06:59]} {[%emt 00:00:39]} 31. Bxe4
{[%clk 00:29:51]} {[%emt 00:00:44]} Bc8 {[%clk 00:05:54]} {[%emt 00:01:36]} 32.
f3 {[%clk 00:26:11]} {[%emt 00:04:10]} Kg7 {[%clk 00:05:33]} {[%emt 00:00:51]}
33. g4 {[%clk 00:26:12]} {[%emt 00:00:28]} h6 {[%clk 00:05:19]} {[%emt
00:00:45]} 34. Ne2 {[%clk 00:26:33]} {[%emt 00:00:09]} Nf7 {[%clk 00:04:49]}
{[%emt 00:01:01]} 35. Ng3 {[%clk 00:25:13]} {[%emt 00:01:48]} Bd8 {[%clk
00:05:14]} {[%emt 00:00:05]} 36. Rb2 {[%clk 00:24:58]} {[%emt 00:00:45]} Ra7
{[%clk 00:05:41]} {[%emt 00:00:05]} 37. Rb8 {[%clk 00:17:55]} {[%emt 00:07:31]}
Bd7 {[%clk 00:04:14]} {[%emt 00:01:58]} 38. Ba5 {[%clk 00:17:54]} {[%emt
00:00:31]} Kf6 {[%clk 00:00:54]} {[%emt 00:03:50]} 39. Bxd8+ {[%clk 00:18:05]}
{[%emt 00:00:19]} Nxd8 {[%clk 00:01:23]} {[%emt 00:00:01]} 40. Rxd8 {[%clk
00:18:32]} {[%emt 00:00:03]} Rb7 {[%clk 00:01:40]} {[%emt 00:00:13]} 41. Ra8
{[%clk 00:18:01]} {[%emt 00:01:00]} Rb6 {[%clk 00:01:09]} {[%emt 00:01:01]} 42.
Ra7 {[%clk 00:18:25]} {[%emt 00:00:06]} Be8 {[%clk 00:01:35]} {[%emt 00:00:03]}
43. Bf5 {[%clk 00:18:49]} {[%emt 00:00:06]} Bf7 {[%clk 00:01:42]} {[%emt
00:00:24]} 44. Ne4+ {[%clk 00:19:11]} {[%emt 00:00:09]} Kg7 {[%clk 00:02:06]}
{[%emt 00:00:06]} 45. Be6 {[%clk 00:19:35]} {[%emt 00:00:05]} 1-0

[Event "Kvibergspelen 2022"]
[Site "Kviberg Park Hotel & Conference, Krutvagen 2, Gothenburg, Sweden"]
[Date "2022.10.02"]
[Round "7.16"]
[White "Wesslen, Ulf"]
[Black "Svensson, Hakan"]
[Result "0-1"]
[TimeControl "15 minutes + 5 seconds per move from move one (Round 1 - 4) / 90 minutes + 30 seconds per move from move one (Round 5 - 8)"]
[WhiteFideId "1705199"]
[BlackFideId "1714201"]
[WhiteElo "1913"]
[BlackElo "2067"]

1. d4 {[%clk 01:30:48]} {[%emt 00:00:10]} d5 {[%clk 01:30:52]} {[%emt
00:00:08]} 2. c4 {[%clk 01:30:48]} {[%emt 00:00:30]} e6 {[%clk 01:31:13]}
{[%emt 00:00:08]} 3. Nc3 {[%clk 01:30:54]} {[%emt 00:00:25]} c5 {[%clk
01:31:35]} {[%emt 00:00:09]} 4. Nf3 {[%clk 01:29:33]} {[%emt 00:01:51]} Nf6
{[%clk 01:31:31]} {[%emt 00:00:33]} 5. Bg5 {[%clk 01:28:10]} {[%emt 00:01:53]}
cxd4 {[%clk 01:31:40]} {[%emt 00:00:23]} 6. Nxd4 {[%clk 01:26:24]} {[%emt
00:02:15]} e5 {[%clk 01:32:04]} {[%emt 00:00:06]} 7. Nc2 {[%clk 01:23:12]}
{[%emt 00:03:42]} d4 {[%clk 01:31:59]} {[%emt 00:00:34]} 8. Nd5 {[%clk
01:16:16]} {[%emt 00:07:27]} Be6 {[%clk 01:31:12]} {[%emt 00:01:15]} 9. e4
{[%clk 01:12:46]} {[%emt 00:04:02]} Bxd5 {[%clk 01:24:03]} {[%emt 00:07:38]} 10.
cxd5 {[%clk 01:09:17]} {[%emt 00:04:00]} Nbd7 {[%clk 01:22:15]} {[%emt
00:02:17]} 11. Bd3 {[%clk 01:02:44]} {[%emt 00:07:03]} Be7 {[%clk 01:22:21]}
{[%emt 00:00:24]} 12. Bxf6 {[%clk 01:01:43]} {[%emt 00:01:31]} Bxf6 {[%clk
01:21:18]} {[%emt 00:01:33]} 13. O-O {[%clk 01:00:08]} {[%emt 00:02:05]} O-O
{[%clk 01:21:28]} {[%emt 00:00:19]} 14. b4 {[%clk 00:57:04]} {[%emt 00:03:35]}
Rc8 {[%clk 01:14:07]} {[%emt 00:07:51]} 15. Qe2 {[%clk 00:52:18]} {[%emt
00:05:15]} Rc3 {[%clk 01:12:11]} {[%emt 00:02:27]} 16. a3 {[%clk 00:48:20]}
{[%emt 00:04:28]} Qc7 {[%clk 01:09:11]} {[%emt 00:03:29]} 17. Ra2 {[%clk
00:45:57]} {[%emt 00:02:54]} Rc8 {[%clk 01:02:40]} {[%emt 00:07:00]} 18. Rb1
{[%clk 00:43:02]} {[%emt 00:03:25]} a6 {[%clk 00:50:27]} {[%emt 00:12:44]} 19.
g3 {[%clk 00:39:22]} {[%emt 00:04:10]} Nb6 {[%clk 00:49:13]} {[%emt 00:01:43]}
20. a4 {[%clk 00:34:25]} {[%emt 00:05:27]} Nc4 {[%clk 00:41:07]} {[%emt
00:08:36]} 21. a5 {[%clk 00:26:03]} {[%emt 00:08:52]} Bg5 {[%clk 00:39:03]}
{[%emt 00:02:33]} 22. h4 {[%clk 00:23:35]} {[%emt 00:02:59]} Bh6 {[%clk
00:37:53]} {[%emt 00:01:39]} 23. b5 {[%clk 00:18:53]} {[%emt 00:05:13]} Nd2
{[%clk 00:30:44]} {[%emt 00:07:39]} 24. Rd1 {[%clk 00:14:46]} {[%emt 00:04:37]}
Nb3 {[%clk 00:30:32]} {[%emt 00:00:42]} 25. bxa6 {[%clk 00:14:07]} {[%emt
00:01:09]} bxa6 {[%clk 00:27:32]} {[%emt 00:03:29]} 26. Kg2 {[%clk 00:09:45]}
{[%emt 00:04:52]} Nc1 {[%clk 00:22:26]} {[%emt 00:05:35]} 27. Rxc1 {[%clk
00:10:06]} {[%emt 00:00:09]} Bxc1 {[%clk 00:22:50]} {[%emt 00:00:05]} 28. Nb4
{[%clk 00:10:25]} {[%emt 00:00:13]} Ba3 {[%clk 00:21:05]} {[%emt 00:02:14]} 29.
Nc6 {[%clk 00:10:25]} {[%emt 00:00:33]} g6 {[%clk 00:10:05]} {[%emt 00:11:29]}
30. Bxa6 {[%clk 00:10:22]} {[%emt 00:00:33]} Re8 {[%clk 00:10:11]} {[%emt
00:00:23]} 31. Qb5 {[%clk 00:09:16]} {[%emt 00:01:36]} f5 {[%clk 00:09:12]}
{[%emt 00:01:29]} 32. Nxd4 {[%clk 00:07:58]} {[%emt 00:01:49]} Rb8 {[%clk
00:09:19]} {[%emt 00:00:23]} 33. Qa4 {[%clk 00:07:07]} {[%emt 00:01:20]} exd4
{[%clk 00:07:43]} {[%emt 00:02:06]} 34. Rxa3 {[%clk 00:06:33]} {[%emt
00:01:05]} Rxa3 {[%clk 00:08:04]} {[%emt 00:00:09]} 35. Qxa3 {[%clk 00:06:45]}
{[%emt 00:00:18]} fxe4 {[%clk 00:08:20]} {[%emt 00:00:12]} 36. d6 {[%clk
00:05:58]} {[%emt 00:01:19]} Qc6 {[%clk 00:05:24]} {[%emt 00:03:26]} 37. Qa2+
{[%clk 00:05:59]} {[%emt 00:00:30]} Kg7 {[%clk 00:05:22]} {[%emt 00:00:31]} 38.
Qe6 {[%clk 00:06:04]} {[%emt 00:00:25]} e3+ {[%clk 00:04:10]} {[%emt 00:01:41]}
39. Kh2 {[%clk 00:05:40]} {[%emt 00:00:55]} Re8 {[%clk 00:02:01]} {[%emt
00:02:39]} 0-1